bitfinex/quotes_SOLUSD_20251019
["timestamp","ask_amount","ask_price","bid_price","bid_amount"]
[1760914701914,2.30436369,190.22,190.2,0.7]
[1760914702326,7.560894,190.24,190.2,1.07999999]
[1760914702520,7.560894,190.24,190.22,0.37999999]
[1760914702823,7.560894,190.24,190.22,1.07999999]
[1760914704439,7.560894,190.24,190.22,0.7]
[1760914704640,7.560894,190.24,190.22,1.07999999]
[1760914707246,7.560894,190.24,190.22,0.37999999]
[1760914708033,7.560894,190.24,190.22,1.07999999]
[1760914709638,2.30436369,190.23,190.22,1.07999999]
[1760914709840,2.30436369,190.24,190.22,1.07999999]
[1760914710132,2.30436369,190.24,190.23,0.7]
[1760914710538,5.2567944,190.23,190.22,0.37999999]
[1760914710732,5.2567944,190.23,190.22,1.07999999]
[1760914717850,5.2567944,190.23,190.22,0.37999999]
[1760914718148,5.2567944,190.23,190.22,1.07999999]
[1760914718648,2.30436369,190.25,190.22,1.07999999]
[1760914718853,2.30436369,190.25,190.23,1.07999999]
[1760914719247,2.30436369,190.25,190.23,0.37999999]
[1760914719456,2.30436369,190.24,190.23,0.37999999]
[1760914720360,7.56088177,190.24,190.23,0.37999999]
[1760914721230,21.30217697,190.24,190.18,0.37999999]
[1760914721530,2.30436369,190.19,190.18,1.07999999]
[1760914721729,2.30436369,190.21,190.2,0.37999999]
[1760914721945,2.30436369,190.22,190.21,0.37999999]
[1760914722544,7.56143445,190.22,190.21,0.37999999]
[1760914722751,8.16143445,190.22,190.21,0.37999999]
[1760914722952,7.56143445,190.22,190.2,0.37999999]
[1760914723144,2.30436369,190.21,190.2,0.37999999]
[1760914723340,2.30436369,190.21,190.19,0.37999999]
[1760914723555,2.30436369,190.21,190.2,0.37999999]
[1760914724432,7.56171083,190.21,190.2,0.37999999]
[1760914725353,7.56171083,190.21,190.19,1.07999999]
[1760914725651,7.56171083,190.21,190.2,0.37999999]
[1760914728838,3.59931886,190.21,190.2,0.37999999]
[1760914730564,3.59931886,190.21,190.2,1.06999999]
[1760914731555,3.59931886,190.21,190.2,0.37999999]
[1760914732341,3.59931886,190.21,190.2,1.06999999]
[1760914733867,5.25726044,190.22,190.2,1.06999999]
[1760914734173,19.59697398,190.28,190.21,1.06999999]
[1760914734349,3.59931886,190.25,190.23,0.37999999]
[1760914734547,3.59931886,190.24,190.23,0.37999999]
[1760914735265,4.19931886,190.24,190.23,0.37999999]
[1760914735451,9.45583694,190.24,190.23,0.37999999]
[1760914735646,22.59713214,190.24,190.21,0.37999999]
[1760914735855,3.59931886,190.22,190.2,0.37999999]
[1760914736051,3.59931886,190.21,190.2,0.37999999]
[1760914736266,3.59931886,190.21,190.2,1.06999999]
[1760914737770,3.59931886,190.22,190.21,0.37999999]
[1760914737962,3.59931886,190.22,190.21,1.06999999]
[1760914738268,3.59931886,190.22,190.21,0.37999999]
[1760914744473,8.85638962,190.22,190.19,0.37999999]
[1760914744670,3.59931886,190.21,190.2,0.37999999]
[1760914745750,8.856666,190.21,190.2,0.37999999]
[1760914749482,8.856666,190.21,190.2,1.06999999]
[1760914749778,8.856666,190.21,190.2,0.37999999]
[1760914749982,8.856666,190.21,190.19,0.37999999]
[1760914750159,3.59931886,190.2,190.19,0.37999999]
[1760914751287,8.85694241,190.2,190.19,0.37999999]
[1760914751485,9.45694241,190.2,190.17,0.37999999]
[1760914751788,3.59931886,190.18,190.17,0.37999999]
[1760914752273,3.59931886,190.18,190.17,1.07999999]
[1760914752779,3.59931886,190.18,190.16,0.37999999]
[1760914753079,3.59931886,190.17,190.16,0.37999999]
[1760914753477,3.59931886,190.18,190.17,0.37999999]
[1760914753675,3.59931886,190.18,190.17,1.07999999]
[1760914754455,8.85749532,190.18,190.15,0.37999999]
[1760914754662,3.59931886,190.16,190.14,1.06999999]
[1760914754863,5.85817646,190.18,190.14,1.06999999]
[1760914754864,3.59931886,190.15,190.14,1.06999999]
[1760914755064,3.59931886,190.16,190.15,0.37999999]
[1760914755584,3.59931886,190.16,190.14,0.37999999]
[1760914755763,3.59931886,190.15,190.14,0.69]
[1760914755961,3.59931886,190.15,190.14,1.06999999]
[1760914757285,3.59931886,190.15,190.14,0.37999999]
[1760914757286,8.8583249,190.15,190.14,0.37999999]
[1760914760589,8.8583249,190.15,190.14,1.06999999]
[1760914761690,5.25900604,190.15,190.14,1.06999999]
[1760914763691,8.85808852,190.16,190.14,1.06999999]
[1760914763993,8.85808852,190.16,190.15,0.37999999]
[1760914765488,8.85808852,190.16,190.14,0.37999999]
[1760914765690,3.59931886,190.15,190.14,0.37999999]
[1760914768494,5.25876966,190.16,190.14,0.37999999]
[1760914768686,3.59931886,190.15,190.14,0.37999999]
[1760914770488,3.59931886,190.15,190.14,1.06999999]
[1760914770686,3.59931886,190.15,190.14,0.37999999]
[1760914775901,31.7383249,190.15,190.14,0.37999999]
[1760914776197,32.3383249,190.15,190.11,0.89]
[1760914776398,3.59931886,190.12,190.11,0.89]
[1760914776593,3.59931886,190.13,190.12,0.69]
[1760914778477,8.85908785,190.13,190.11,0.2]
[1760914778794,8.85908785,190.13,190.11,0.89]
[1760914780176,8.85908785,190.13,190.12,0.69]
[1760914782898,8.85908785,190.13,190.11,0.57999999]
[1760914783098,8.85908785,190.13,190.11,1.26999999]
[1760914783598,8.85908785,190.13,190.11,0.57999999]
[1760914783798,8.85908785,190.13,190.12,0.69]
[1760914788306,9.45908785,190.13,190.11,0.57999999]
[1760914788506,3.59931886,190.12,190.11,0.57999999]
[1760914788705,2.3055566,190.12,190.11,0.57999999]
[1760914789008,2.9055566,190.12,190.11,0.57999999]
[1760914789310,2.3055566,190.12,190.11,0.57999999]
[1760914789805,7.56539249,190.12,190.11,0.57999999]
[1760914791004,19.00652115,190.15,190.11,1.24999999]
[1760914791305,2.3055566,190.12,190.11,1.24999999]
[1760914791499,2.3055566,190.12,190.11,0.57999999]
[1760914792208,7.56539249,190.12,190.11,0.2]
[1760914792507,7.56539249,190.12,190.11,0.57999999]
[1760914792689,7.56539249,190.12,190.11,1.24999999]
[1760914793501,22.88,190.16,190.11,1.24999999]
[1760914793707,7.56459105,190.15,190.12,1.04999999]
[1760914794007,7.56459105,190.15,190.13,0.67]
[1760914794189,7.56459105,190.15,190.12,0.37999999]
[1760914794397,7.56459105,190.15,190.13,0.67]
[1760914794703,2.3055566,190.14,190.13,0.67]
[1760914796310,5.25955924,190.13,190.12,0.37999999]
[1760914796501,5.25955924,190.13,190.12,1.04999999]
[1760914796810,7.56511584,190.13,190.12,0.37999999]
[1760914797493,7.56511584,190.13,190.12,1.04999999]
[1760914798407,7.56487845,190.14,190.12,1.04999999]
[1760914798602,5.25932185,190.14,190.13,1.04999999]
[1760914799313,13.14542685,190.19,190.13,1.04999999]
[1760914799609,13.14542685,190.19,190.15,0.37999999]
[1760914799610,7.56373306,190.18,190.15,0.37999999]
[1760914799794,7.56373306,190.18,190.17,0.37999999]
[1760914800212,7.56348481,190.19,190.17,1.04999999]
[1760914800403,7.56348481,190.19,190.18,1.04999999]
[1760914801301,8.16348481,190.19,190.17,0.37999999]
[1760914801499,2.3055566,190.18,190.13,0.37999999]
[1760914801814,2.3055566,190.14,190.11,0.57999999]
[1760914802106,2.3055566,190.13,190.12,0.37999999]
[1760914802500,7.56493895,190.14,190.12,1.04999999]
[1760914803113,7.56493895,190.14,190.13,0.37999999]
[1760914803527,7.56493895,190.14,190.11,0.2]
[1760914803528,8.16493895,190.14,190.11,0.2]
[1760914803700,2.3055566,190.12,190.11,0.2]
[1760914805502,7.56539249,190.12,190.11,0.2]
[1760914806421,8.16539249,190.12,190.11,0.2]
[1760914809016,0.6,190.12,190.11,0.2]
[1760914809318,2.9055566,190.12,190.11,0.2]
[1760914810412,7.56539249,190.12,190.11,0.2]
[1760914810797,8.16539249,190.12,190.11,0.2]
[1760914811409,33.75647521,190.11,190.1,0.2]
[1760914811614,38.36758841,190.11,190.1,0.2]
[1760914811807,36.56203181,190.11,190.1,0.2]
[1760914812526,41.82214437,190.11,190.1,0.2]
[1760914814014,83.57854521,190.11,190.05,0.2]
[1760914814318,2.3055566,190.06,190.05,0.2]
[1760914814706,2.3055566,190.06,190.05,1.28999999]
[1760914816024,7.56705296,190.06,190.05,0.91]
[1760914816828,5.26149636,190.06,190.05,0.91]
[1760914817010,7.56705296,190.06,190.05,1.28999999]
[1760914817212,2.3055566,190.06,190.05,1.28999999]
[1760914817522,7.56678887,190.07,190.05,1.28999999]
[1760914817917,5.26123227,190.07,190.06,0.71]
[1760914819021,7.5664152,190.09,190.06,0.71]
[1760914819232,5.2608586,190.09,190.07,0.37999999]
[1760914819407,7.5664152,190.09,190.08,1.08999999]
[1760914820425,2.3055566,190.09,190.08,1.08999999]
[1760914820636,2.3055566,190.09,190.08,0.37999999]
[1760914820806,2.3055566,190.09,190.06,0.37999999]
[1760914821123,2.3055566,190.07,190.05,0.2]
[1760914821307,2.3055566,190.06,190.05,0.2]
[1760914821924,2.3055566,190.06,190.05,0.57999999]
[1760914822616,7.56705296,190.06,190.05,0.57999999]
[1760914823018,7.56705296,190.06,190.05,0.2]
[1760914825127,8.06705296,190.06,190.05,0.2]
[1760914827225,7.56705296,190.06,190.05,0.91]
[1760914827827,5.26094276,190.08,190.05,0.91]
[1760914828124,2.3055566,190.09,190.07,0.37999999]
[1760914828324,2.3055566,190.09,190.08,0.71]
[1760914828827,2.3055566,190.1,190.08,0.71]
[1760914829032,7.56601355,190.1,190.09,0.37999999]
[1760914829231,7.56601355,190.1,190.09,1.08999999]
[1760914829827,8.06601355,190.1,190.06,0.37999999]
[1760914830031,2.3055566,190.07,190.05,0.57999999]
[1760914830206,2.3055566,190.06,190.05,0.2]
[1760914831115,8.06705296,190.06,190.05,0.2]
[1760914831318,18.94352817,190.06,190.05,0.2]
[1760914831521,5.26149636,190.06,190.05,0.2]
[1760914831829,7.56705296,190.06,190.05,0.2]
[1760914832232,7.56705296,190.06,190.01,0.57999999]
[1760914832418,11.527783,190.02,189.94,0.2]
[1760914832619,22.88,189.96,189.94,1e-08]
[1760914832838,33.75647521,189.93,189.92,1e-08]
[1760914833025,22.88,189.89,189.88,0.2]
[1760914833229,22.88,189.87,189.86,0.2]
[1760914833414,25.1855566,189.87,189.81,0.71]
[1760914833619,2.3055566,189.82,189.79,0.71]
[1760914833830,22.88,189.87,189.74,5.0572957]
[1760914833831,2.3055566,189.86,189.74,5.0572957]
[1760914834032,2.3055566,189.86,189.74,2.7517391]
[1760914834033,2.3055566,189.8,189.74,2.7517391]
[1760914834343,2.3055566,189.86,189.75,0.71]
[1760914834547,22.88,189.82,189.75,0.71]
[1760914834916,25.1855566,189.82,189.75,0.71]
[1760914835117,2.3055566,189.8,189.75,0.71]
[1760914835318,2.3055566,189.8,189.76,0.71]
[1760914835531,10.87647521,189.8,189.74,0.71]
[1760914835742,2.3055566,189.77,189.72,0.71]
[1760914836032,2.3055566,189.74,189.7,0.71]
[1760914836213,10.87647521,189.78,189.71,0.71]
[1760914836412,13.18203181,189.78,189.71,0.71]
[1760914837033,16.14596905,189.78,189.71,0.71]
[1760914837335,28.14913894,189.79,189.71,3.0155566]
[1760914837521,28.14913894,189.79,189.66,22.88]
[1760914837522,2.3055566,189.78,189.72,0.71]
[1760914837917,2.3055566,189.76,189.7,0.71]
[1760914838143,2.3055566,189.74,189.7,0.71]
[1760914838327,2.3055566,189.76,189.71,0.71]
[1760914838524,2.3055566,189.76,189.72,0.71]
[1760914838742,5.30574385,189.75,189.7,0.71]
[1760914839113,5.27036997,189.74,189.7,0.71]
[1760914839318,5.30574385,189.71,189.68,0.71]
[1760914840526,5.30574385,189.69,189.65,0.71]
[1760914840725,5.30574385,189.68,189.65,0.71]
[1760914841239,22.88,189.73,189.65,0.71]
[1760914841446,5.30574385,189.7,189.65,0.71]
[1760914841620,22.88,189.73,189.65,0.71]
[1760914841824,5.30574385,189.71,189.65,6.01574385]
[1760914842035,22.88,189.73,189.66,0.71]
[1760914842036,28.15086126,189.73,189.66,0.71]
[1760914842357,5.30574385,189.7,189.66,0.71]
[1760914842723,5.30574385,189.67,189.64,0.71]
[1760914842922,5.30574385,189.66,189.62,0.71]
[1760914843122,5.30574385,189.65,189.62,0.71]
[1760914843441,5.27294875,189.65,189.6,0.71]
[1760914843651,10.5786926,189.65,189.61,0.71]
[1760914843854,10.5786926,189.65,189.59,5.30574385]
[1760914844158,10.5786926,189.65,189.62,0.71]
[1760914844954,10.5786926,189.65,189.6,5.98574385]
[1760914845125,10.5786926,189.65,189.61,0.68]
[1760914845648,5.27294875,189.65,189.57,0.68]
[1760914845853,5.30574385,189.64,189.58,5.30574385]
[1760914846143,10.5786926,189.65,189.59,5.98574385]
[1760914846347,5.30574385,189.64,189.6,0.68]
[1760914846549,5.30574385,189.64,189.61,0.68]
[1760914846737,5.27294875,189.65,189.61,0.68]
[1760914846937,15.80053009,189.68,189.59,5.30574385]
[1760914847248,5.30574385,189.65,189.62,0.68]
[1760914847427,5.30574385,189.66,189.62,0.68]
[1760914848042,5.30574385,189.65,189.62,0.68]
[1760914848735,8.06921789,189.65,189.62,0.68]
[1760914848973,8.06921789,189.63,189.6,0.68]
[1760914849132,8.06921789,189.63,189.57,8.06921789]
[1760914849133,8.06921789,189.63,189.58,0.68]
[1760914849330,8.06921789,189.62,189.59,0.68]
[1760914849835,13.34300248,189.62,189.59,0.68]
[1760914850042,13.34300248,189.62,189.57,8.74921789]
[1760914850242,13.34300248,189.62,189.58,0.68]
[1760914850444,5.27378459,189.62,189.59,0.68]
[1760914850646,13.34300248,189.62,189.54,28.15592942]
[1760914850835,13.34300248,189.62,189.57,8.74921789]
[1760914851030,13.34300248,189.62,189.58,0.68]
[1760914851251,8.06921789,189.61,189.56,0.68]
[1760914851634,5.2742616,189.6,189.57,0.68]
[1760914851830,5.2742616,189.6,189.54,22.88]
[1760914852034,8.06921789,189.55,189.49,0.68]
[1760914852242,8.06921789,189.57,189.51,8.06921789]
[1760914852451,5.2742616,189.6,189.52,0.68]
[1760914852452,8.06921789,189.58,189.52,0.68]
[1760914852847,5.2742616,189.6,189.52,0.68]
[1760914853051,10.87647521,189.63,189.55,8.06921789]
[1760914853273,8.06921789,189.62,189.56,0.68]
[1760914853440,8.06921789,189.61,189.56,0.68]
[1760914853847,13.34342955,189.61,189.57,0.68]
[1760914854571,8.06921789,189.6,189.56,0.68]
[1760914854858,8.06921789,189.6,189.57,0.68]
[1760914855067,5.27431308,189.6,189.57,0.68]
[1760914855664,5.27431308,189.6,189.55,8.06921789]
[1760914855852,5.27391514,189.62,189.58,0.68]
[1760914856160,13.34313303,189.62,189.58,0.68]
[1760914856487,28.15339277,189.64,189.58,0.68]
[1760914856667,5.27339277,189.64,189.58,8.74921789]
[1760914856865,13.34261066,189.64,189.58,8.74921789]
[1760914857064,13.34261066,189.64,189.58,0.68]
[1760914857456,8.06921789,189.63,189.58,0.68]
[1760914857769,5.27339277,189.64,189.58,8.74921789]
[1760914857970,22.88,189.65,189.6,8.06921789]
[1760914858271,8.06921789,189.67,189.61,8.74921789]
[1760914858466,13.341255,189.68,189.62,8.74921789]
[1760914858643,5.27203711,189.68,189.63,3.9373329]
[1760914858849,3.2573329,189.69,189.64,3.9373329]
[1760914859049,3.2573329,189.69,189.65,0.68]
[1760914859050,8.52913324,189.69,189.65,0.68]
[1760914859469,3.2573329,189.7,189.66,0.68]
[1760914859857,3.2573329,189.7,189.67,0.68]
[1760914860060,5.27120341,189.71,189.67,0.68]
[1760914860249,15.09771905,189.75,189.68,0.68]
[1760914860457,3.2573329,189.71,189.68,0.68]
[1760914860765,3.2573329,189.7,189.66,0.68]
[1760914860966,8.52984735,189.67,189.61,0.68]
[1760914861172,5.27251445,189.67,189.61,0.68]
[1760914861474,3.2573329,189.63,189.61,0.68]
[1760914861975,3.2573329,189.64,189.61,0.68]
[1760914862268,3.2573329,189.62,189.56,3.2573329]
[1760914862472,3.2573329,189.6,189.56,0.68]
[1760914862670,3.2573329,189.58,189.56,0.68]
[1760914863049,3.2573329,189.59,189.56,0.68]
[1760914863674,3.2573329,189.58,189.53,0.68]
[1760914863965,3.2573329,189.59,189.53,3.9373329]
[1760914864172,3.2573329,189.56,189.53,0.68]
[1760914864376,3.2573329,189.57,189.54,0.68]
[1760914864750,8.07596199,189.57,189.54,0.68]
[1760914865172,13.35106308,189.57,189.54,0.68]
[1760914865472,13.35106308,189.57,189.51,8.75596199]
[1760914865473,8.07596199,189.56,189.51,8.75596199]
[1760914865656,8.07596199,189.56,189.52,0.68]
[1760914865852,8.07596199,189.56,189.53,0.68]
[1760914866155,13.35106308,189.57,189.53,0.68]
[1760914866573,13.35135168,189.56,189.53,0.68]
[1760914866865,13.35135168,189.56,189.51,8.07596199]
[1760914867076,13.35135168,189.56,189.51,8.75596199]
[1760914867766,8.07596199,189.57,189.52,0.68]
[1760914868169,8.07596199,189.57,189.53,0.68]
[1760914868561,5.27453979,189.59,189.53,0.68]
[1760914868883,30.95596199,189.61,189.56,8.07596199]
[1760914869059,30.95596199,189.61,189.56,0.68]
[1760914869571,30.95596199,189.61,189.57,0.68]
[1760914869783,8.07596199,189.62,189.57,0.68]
[1760914869960,8.07596199,189.62,189.58,0.68]
[1760914870659,5.27398343,189.61,189.58,0.68]
[1760914873275,30.95596199,189.59,189.52,0.66]
[1760914873478,8.07596199,189.56,189.52,0.66]
[1760914873675,8.07596199,189.55,189.52,0.66]
[1760914874269,22.88,189.58,189.52,0.66]
[1760914874459,8.07596199,189.55,189.52,0.66]
[1760914874774,5.2759312,189.54,189.52,0.66]
[1760914874957,13.35189319,189.54,189.5,0.69]
[1760914875159,13.35189319,189.54,189.51,0.69]
[1760914875456,13.35189319,189.54,189.48,8.07596199]
[1760914875660,5.2759312,189.54,189.52,0.69]
[1760914875872,5.2759312,189.54,189.5,0.69]
[1760914876179,5.2759312,189.54,189.51,0.69]
[1760914876979,5.2759312,189.54,189.48,0.69]
[1760914877158,8.07596199,189.53,189.48,0.69]
[1760914877558,8.07596199,189.53,189.49,0.69]
[1760914877960,8.07596199,189.51,189.46,0.79]
[1760914878370,8.07596199,189.5,189.46,0.79]
[1760914879003,13.35306797,189.5,189.46,0.79]
[1760914879958,5.27710598,189.5,189.46,0.79]
[1760914880155,13.35306797,189.5,189.46,0.79]
[1760914881466,8.07596199,189.49,189.46,0.1]
[1760914881681,8.07596199,189.48,189.46,0.1]
[1760914882172,8.07596199,189.49,189.46,0.1]
[1760914882573,13.35306797,189.5,189.46,0.79]
[1760914883474,5.27674788,189.52,189.47,8.76596199]
[1760914883680,8.07596199,189.53,189.48,0.69]
[1760914883877,0.11103144,189.58,189.52,8.07596199]
[1760914884084,5.27453239,189.6,189.55,8.07596199]
[1760914884289,5.27453239,189.6,189.56,0.69]
[1760914884776,8.07596199,189.59,189.54,0.69]
[1760914884965,8.07596199,189.58,189.52,8.76596199]
[1760914885166,8.07596199,189.57,189.52,8.76596199]
[1760914885391,13.35133654,189.56,189.5,0.69]
[1760914885568,8.07596199,189.54,189.5,0.69]
[1760914885765,5.27510945,189.57,189.51,8.07596199]
[1760914885992,5.27510945,189.57,189.52,8.76596199]
[1760914886291,5.27510945,189.57,189.53,8.07596199]
[1760914886468,22.88,189.58,189.54,0.69]
[1760914886983,28.15502301,189.58,189.54,0.69]
[1760914887176,22.88,189.58,189.54,0.69]
[1760914887376,22.88,189.58,189.55,0.69]
[1760914887971,28.15503835,189.58,189.55,0.69]
[1760914888189,22.88,189.58,189.53,13.35217052]
[1760914888510,28.15485665,189.58,189.55,0.69]
[1760914889198,22.88,189.58,189.55,0.69]
[1760914889495,28.15492048,189.58,189.55,0.69]
[1760914890083,5.27492048,189.58,189.55,0.69]
[1760914890591,30.95596199,189.61,189.56,0.69]
[1760914891098,5.27427285,189.6,189.56,0.69]
[1760914891300,28.15399632,189.61,189.57,0.69]
[1760914891897,22.88,189.61,189.58,0.69]
[1760914892096,22.88,189.61,189.57,8.07596199]
[1760914892299,8.07596199,189.6,189.51,13.19181247]
[1760914892491,8.07596199,189.59,189.53,8.07596199]
[1760914892689,8.07596199,189.59,189.54,0.69]
[1760914892996,28.15408739,189.61,189.56,8.07596199]
[1760914893184,28.15408739,189.61,189.57,0.69]
[1760914893383,28.15408739,189.61,189.57,8.76596199]
[1760914893784,28.15408739,189.61,189.48,5.27760185]
[1760914894015,8.07596199,189.58,189.5,8.07596199]
[1760914894205,8.07596199,189.58,189.51,0.69]
[1760914894388,8.07596199,189.56,189.51,0.69]
[1760914894592,10.87647521,189.6,189.51,0.69]
[1760914894780,8.07596199,189.57,189.52,0.69]
[1760914895480,8.07596199,189.57,189.53,0.69]
[1760914895679,13.35114756,189.57,189.51,5.27676639]
[1760914895902,13.35114756,189.57,189.51,14.04272838]
[1760914896803,13.35114756,189.57,189.52,0.69]
[1760914896991,5.27518557,189.57,189.53,0.69]
[1760914897195,5.27518557,189.57,189.54,0.69]
[1760914897412,5.27474536,189.59,189.55,0.69]
[1760914897587,5.27474536,189.59,189.55,8.07596199]
[1760914897786,5.27474536,189.59,189.56,0.69]
[1760914898410,8.07596199,189.57,189.51,8.07596199]
[1760914898594,5.27428556,189.6,189.54,8.76596199]
[1760914898784,5.27428556,189.6,189.55,8.76596199]
[1760914899105,5.27428556,189.6,189.56,0.69]
[1760914900310,13.35024755,189.6,189.56,0.69]
[1760914900684,13.35024755,189.6,189.54,8.07596199]
[1760914900685,8.07596199,189.59,189.54,0.69]
[1760914902605,5.27481801,189.58,189.54,0.69]
[1760914903900,13.35022359,189.6,189.55,0.69]
[1760914906111,5.2742616,189.6,189.55,0.69]
[1760914906310,10.87647521,189.59,189.5,5.2768295]
[1760914906512,18.9524372,189.59,189.53,0.71]
[1760914906719,7.99683763,189.58,189.53,0.71]
[1760914906917,7.99683763,189.58,189.54,0.71]
[1760914907207,7.99683763,189.58,189.52,0.71]
[1760914907410,7.99683763,189.58,189.52,8.78596199]
[1760914907595,5.27509627,189.57,189.52,8.78596199]
[1760914908213,5.27509627,189.57,189.53,0.71]
[1760914908506,8.07596199,189.56,189.51,0.71]
[1760914908708,3.26166224,189.56,189.52,0.71]
[1760914908905,8.53675851,189.57,189.52,0.71]
[1760914909406,5.27509627,189.57,189.52,3.97166224]
[1760914910701,7.36233469,189.57,189.52,0.71]
[1760914911523,7.36233469,189.57,189.53,0.71]
[1760914913024,30.24209972,189.58,189.54,0.71]
[1760914914304,28.1548613,189.58,189.52,7.36357342]
[1760914914511,2.08723842,189.54,189.49,0.71]
[1760914914702,2.08723842,189.53,189.49,0.71]
[1760914915811,7.36372638,189.52,189.47,0.71]
[1760914916206,2.08723842,189.51,189.46,37.14]
[1760914916419,2.08723842,189.5,189.46,0.81]
[1760914916798,2.08723842,189.51,189.46,0.81]
[1760914917501,2.08723842,189.5,189.46,0.1]
[1760914917709,5.27732334,189.49,189.46,0.1]
[1760914917912,5.27732334,189.49,189.46,0.81]
[1760914918124,5.27732334,189.49,189.46,0.1]
[1760914918600,7.36456176,189.49,189.46,0.1]
[1760914918794,5.27732334,189.49,189.46,0.1]
[1760914919000,5.27732334,189.49,189.46,0.81]
[1760914919516,5.27732334,189.49,189.46,0.31]
[1760914920313,5.2769309,189.51,189.45,5.27839412]
[1760914920520,5.2769309,189.51,189.43,59.92]
[1760914920521,5.2769309,189.51,189.47,2.08723842]
[1760914920704,7.36416932,189.51,189.45,2.08723842]
[1760914920903,7.36416932,189.51,189.45,39.12723842]
[1760914921510,5.2769309,189.51,189.46,0.71]
[1760914921716,2.08723842,189.52,189.47,0.71]
[1760914921914,15.27788317,189.53,189.47,2.79723842]
[1760914922117,2.08723842,189.52,189.47,0.71]
[1760914922312,2.48723842,189.51,189.44,0.71]
[1760914922514,2.08723842,189.5,189.45,37.04]
[1760914922827,2.48723842,189.5,189.45,37.75]
[1760914923117,2.48723842,189.5,189.45,39.83723842]
[1760914923323,2.08723842,189.51,189.45,2.08723842]
[1760914923498,2.48723842,189.51,189.45,2.08723842]
[1760914923696,5.27732334,189.49,189.45,2.08723842]
[1760914923919,5.27732334,189.49,189.44,2.79723842]
[1760914924125,5.67732334,189.49,189.44,2.79723842]
[1760914924627,2.48723842,189.48,189.43,2.08723842]
[1760914924926,0.4,189.47,189.35,61.8]
[1760914925128,0.4,189.47,189.39,2.79723842]
[1760914925337,12.87077962,189.49,189.42,2.08723842]
[1760914925505,12.87077962,189.49,189.43,0.71]
[1760914925703,5.27732334,189.49,189.44,2.08723842]
[1760914925998,0.4,189.48,189.4,5.27981541]
[1760914926204,2.08723842,189.46,189.4,0.71]
[1760914926411,2.08723842,189.44,189.38,2.08723842]
[1760914926607,2.08723842,189.39,189.33,0.1]
[1760914926815,2.08723842,189.36,189.33,0.1]
[1760914927017,2.08723842,189.34,189.33,0.1]
[1760914927202,25.36723842,189.34,189.33,0.1]
[1760914927797,30.64874259,189.34,189.33,0.1]
[1760914928205,41.5252178,189.34,189.27,0.1]
[1760914928425,12.96371363,189.28,189.27,0.1]
[1760914928624,10.87647521,189.28,189.27,0.1]
[1760914928827,22.88,189.3,189.27,0.1]
[1760914929052,22.88,189.3,189.27,0.81]
[1760914929530,22.88,189.3,189.27,0.1]
[1760914929844,5.33160924,189.29,189.27,0.1]
[1760914930206,0.3,189.28,189.27,0.1]
[1760914930524,10.87647521,189.29,189.27,0.1]
[1760914930707,5.33160924,189.28,189.27,0.1]
[1760914932029,10.6147876,189.28,189.27,0.1]
[1760914932229,5.33160924,189.28,189.27,0.1]
[1760914932430,28.21160924,189.29,189.27,0.1]
[1760914932635,5.33160924,189.33,189.27,6.11160924]
[1760914932811,5.33160924,189.34,189.28,6.01160924]
[1760914933011,5.33160924,189.34,189.29,0.68]
[1760914933213,16.20808445,189.35,189.3,0.68]
[1760914934025,5.33160924,189.36,189.31,0.69]
[1760914934428,5.33160924,189.36,189.32,0.69]
[1760914936421,10.61257025,189.36,189.32,0.69]
[1760914937421,5.33160924,189.35,189.29,5.33160924]
[1760914937636,5.33160924,189.34,189.29,0.69]
[1760914937943,5.28096101,189.36,189.3,0.69]
[1760914938118,5.28096101,189.36,189.3,6.02160924]
[1760914938119,10.61257025,189.36,189.3,6.02160924]
[1760914938316,5.33160924,189.35,189.3,0.69]
[1760914938522,5.33160924,189.34,189.3,0.69]
[1760914939432,10.61317306,189.34,189.28,5.33160924]
[1760914939634,5.33160924,189.29,189.27,0.1]
[1760914939835,5.33160924,189.28,189.27,0.1]
[1760914940736,10.87647521,189.31,189.27,0.1]
[1760914940925,0.3,189.33,189.27,0.1]
[1760914941130,5.33160924,189.31,189.27,0.1]
[1760914941329,5.33160924,189.3,189.27,0.1]